bitfinex-derivatives/quotes_ETHF0:USTF0_20251103
["timestamp","ask_amount","ask_price","bid_price","bid_amount"]
[1762137061300,0.292,3807.0,3806.8,3.2078]
[1762137061486,0.292,3807.0,3805.8,2.37963554]
[1762137061487,0.5047,3806.7,3805.8,2.37963554]
[1762137061791,0.2121852,3806.7,3806.1,3.2078]
[1762137061990,0.7168852,3806.7,3806.6,3.2078]
[1762137062191,0.7168852,3806.7,3806.6,1.49958991]
[1762137062392,0.7967,3805.9,3805.0,1.427]
[1762137062698,0.2121852,3806.7,3805.9,0.77535]
[1762137062899,0.2121852,3806.7,3806.6,3.6969]
[1762137063096,0.00288359,3806.7,3806.6,4.47217]
[1762137063296,0.292,3808.7,3806.6,3.5102]
[1762137063498,0.5047,3808.4,3808.3,3.2078]
[1762137063797,1.37414802,3808.3,3807.3,3.5102]
[1762137064002,3.2078,3809.2,3807.9,3.2078]
[1762137064198,1.37414802,3808.5,3807.9,3.21055296]
[1762137064403,0.5047,3808.0,3807.9,0.00275296]
[1762137064605,1.87884802,3808.0,3807.9,0.00275296]
[1762137064898,1.37414802,3808.5,3807.9,0.00275296]
[1762137065097,1.37414802,3808.1,3807.9,0.00275296]
[1762137065494,0.5047,3808.0,3807.9,0.00275296]
[1762137065799,0.292,3808.7,3807.9,0.00275296]
[1762137065800,1.37414802,3808.6,3807.9,0.00275296]
[1762137066007,1.37414802,3809.0,3808.6,0.4891]
[1762137066201,0.00184825,3809.2,3808.6,3.2078]
[1762137066398,3.2078,3809.9,3809.1,0.96166]
[1762137066602,0.292,3810.8,3808.7,0.3024]
[1762137066603,1.37414802,3810.4,3809.7,3.2078]
[1762137066801,1.37414802,3810.4,3810.1,3.2078]
[1762137067201,3.4998,3811.5,3810.2,0.47243]
[1762137067398,1.37414802,3811.4,3810.4,3.5102]
[1762137067597,1.37414802,3811.4,3809.9,0.47246]
[1762137067598,5.05433802,3810.6,3809.9,3.2078]
[1762137067795,1.37414802,3810.0,3809.5,3.2078]
[1762137068102,1.37414802,3810.0,3808.7,0.3024]
[1762137068103,1.37414802,3810.0,3809.9,3.2078]
[1762137068305,1.37414802,3810.0,3809.5,3.2078]
[1762137068804,1.37414802,3809.6,3809.1,3.2078]
[1762137069805,1.87884802,3809.2,3808.7,3.2078]
[1762137070000,2.13884802,3808.8,3808.7,3.2078]
[1762137070394,0.5047,3808.4,3808.3,3.2078]
[1762137070598,1.88095676,3808.4,3808.3,3.2078]
[1762137070794,0.5047,3808.0,3807.9,0.00275296]
[1762137071097,4.0045,3808.0,3807.9,0.00275296]
[1762137071902,4.0045,3808.0,3807.2,3.2078]
[1762137071903,13.37864802,3808.0,3807.2,3.2078]
[1762137072103,0.292,3807.2,3805.8,3.2078]
[1762137072308,3.2078,3806.9,3806.2,3.2078]
[1762137072606,3.2078,3808.2,3807.2,0.3024]
[1762137072800,3.2078,3808.2,3807.5,0.47276]
[1762137073104,0.00210874,3808.4,3807.8,3.2078]
[1762137073303,0.00210874,3808.4,3807.8,3.68052]
[1762137073703,0.00210874,3808.4,3808.3,3.6969]
[1762137073898,8.74e-06,3808.4,3808.3,3.6969]
[1762137074200,1.37414802,3809.1,3808.3,3.2078]
[1762137074399,4.58194802,3808.7,3807.8,3.2078]
[1762137074899,1.37414802,3808.2,3807.8,3.2078]
[1762137075099,1.37414802,3808.2,3807.5,0.00228671]
[1762137075100,4.58194802,3808.2,3807.5,0.00228671]
[1762137075298,1.37414802,3807.6,3807.5,0.00228671]
[1762137075501,1.37414802,3807.6,3806.9,3.2078]
[1762137075502,0.4691,3807.0,3806.9,3.2078]
[1762137075703,0.4691,3807.0,3806.3,3.2078]
[1762137075907,3.2078,3807.1,3806.3,3.2078]
[1762137076203,0.4728,3807.2,3806.3,3.2078]
[1762137076509,3.2078,3807.9,3806.7,3.2078]
[1762137076703,1.37414802,3807.7,3806.7,3.68065]
[1762137076903,3.2078,3807.9,3806.7,3.2078]
[1762137077102,3.2078,3807.9,3806.9,0.47283]
[1762137077405,1.37414802,3808.1,3807.5,3.2078]
[1762137077607,1.37414802,3808.6,3807.5,3.2078]
[1762137078102,1.37414802,3808.6,3807.4,0.47277]
[1762137078103,1.37414802,3808.6,3807.9,3.2078]
[1762137079107,3.2078,3809.2,3808.3,3.2078]
[1762137079797,3.2078,3809.2,3808.5,0.47263]
[1762137080206,4.58194802,3809.7,3808.5,0.47263]
[1762137080401,4.58194802,3809.7,3808.3,3.68046]
[1762137080402,1.37414802,3809.3,3808.3,3.68046]
[1762137080610,3.2078,3808.5,3807.6,3.68054]
[1762137080802,1.37682977,3808.7,3807.7,0.47273]
[1762137081003,1.37682977,3808.7,3808.0,3.2078]
[1762137081209,0.00268175,3808.7,3808.0,3.68049]
[1762137081512,0.00268175,3808.7,3808.4,3.2078]
[1762137082009,0.00268175,3808.7,3808.5,0.47263]
[1762137082199,0.00268175,3808.7,3808.4,3.2078]
[1762137082396,3.2078,3809.5,3808.4,3.2078]
[1762137082602,1.37414802,3810.1,3809.0,3.68037]
[1762137082801,1.37414802,3810.1,3809.2,0.47255]
[1762137083002,1.84324802,3810.6,3809.4,3.2078]
[1762137083206,1.84324802,3810.6,3809.4,3.68032]
[1762137083207,0.8747277,3810.5,3809.4,3.68032]
[1762137083397,0.62425358,3810.4,3809.4,3.2078]
[1762137083607,0.00263654,3810.4,3810.3,3.2078]
[1762137083806,3.2078,3811.2,3810.4,0.4724]
[1762137084006,3.2078,3811.2,3810.7,3.2078]
[1762137084512,3.2078,3811.2,3810.9,0.47233]
[1762137084811,0.47224,3811.7,3810.7,3.2078]
[1762137084812,2.21059851,3811.7,3810.7,3.2078]
[1762137085002,1.37414802,3812.0,3810.3,1.37414802]
[1762137085003,1.37414802,3810.8,3810.3,3.2078]
[1762137085206,0.47246,3810.0,3809.8,3.2078]
[1762137085406,0.47251,3809.5,3809.4,0.00245193]
[1762137085609,0.47259,3808.9,3808.8,3.2078]
[1762137085804,1.37414802,3809.5,3808.8,3.2078]
[1762137086603,0.00264345,3809.5,3808.8,3.2103537]
[1762137086911,0.00264345,3809.5,3809.2,3.2078]
[1762137087804,0.00264345,3809.5,3808.8,3.2103537]
[1762137088001,0.00264345,3809.5,3806.9,40.8]
[1762137088002,1.37414802,3808.9,3808.4,3.2078]
[1762137088212,1.37414802,3808.5,3807.9,3.2078]
[1762137088415,3.2078,3808.3,3807.5,3.2078]
[1762137089014,3.2078,3808.3,3807.5,3.21089496]
[1762137089702,3.2078,3808.6,3807.5,3.21089496]
[1762137089908,0.87480058,3808.5,3807.5,3.21089496]
[1762137090114,0.62429009,3808.4,3807.5,3.21089496]
[1762137090413,3.2078,3808.6,3807.5,3.21089496]
[1762137090612,0.87488787,3808.5,3807.5,3.21089496]
[1762137090909,0.87488787,3808.4,3807.5,3.21089496]
[1762137091109,3.6524,3807.9,3807.5,0.00309496]
[1762137091303,2.11563829,3807.8,3806.7,3.2078]
[1762137091504,3.2078,3807.3,3806.7,3.2078]
[1762137091712,5.07298436,3807.8,3806.7,3.2078]
[1762137091908,2.28827145,3808.8,3807.1,3.2078]
[1762137091909,0.62419271,3807.7,3807.1,3.2078]
[1762137092209,3.2078,3808.3,3807.1,3.2078]
[1762137092412,3.2078,3808.3,3807.1,3.20977559]
[1762137092413,0.87514524,3808.2,3807.1,3.20977559]
[1762137092608,0.62453652,3808.1,3807.6,3.2078]
[1762137092810,3.2078,3808.3,3807.6,3.2078]
[1762137093012,0.62455418,3808.2,3807.6,3.2078]
[1762137093208,3.2078,3808.3,3807.6,3.2078]
[1762137093516,0.62463269,3808.2,3807.6,3.2078]
[1762137093704,3.2078,3808.3,3807.6,3.2078]
[1762137094215,0.87529731,3808.2,3807.1,3.20977559]
[1762137094418,0.62464353,3808.1,3807.1,3.68258559]
[1762137094609,3.2078,3808.3,3807.2,3.2078]
[1762137094813,0.87521869,3808.2,3807.6,3.2078]
[1762137095014,0.62457978,3808.1,3807.6,3.2078]
[1762137095212,1.86518436,3808.5,3807.6,3.2078]
[1762137095515,3.2078,3808.7,3807.6,3.68054]
[1762137095913,3.2078,3808.7,3807.6,3.2078]
[1762137096415,3.2078,3808.7,3808.0,3.2078]
[1762137097418,0.62489829,3808.6,3807.6,3.2078]
[1762137097613,3.2078,3808.7,3807.6,3.2078]
[1762137097913,3.2078,3809.1,3808.1,3.2078]
[1762137098110,3.2078,3808.3,3807.2,3.2078]
[1762137098318,0.87773529,3808.2,3807.2,3.2078]
[1762137098620,0.87773529,3808.1,3807.4,3.2078]
[1762137098823,3.6524,3808.8,3807.4,3.2078]
[1762137099119,3.2078,3808.2,3807.1,0.47477559]
[1762137099319,0.87796221,3808.1,3807.1,0.47477559]
[1762137099522,0.6250381,3808.0,3807.4,3.2078]
[1762137099716,3.2078,3808.2,3807.4,3.68057]
[1762137100018,0.4446,3808.8,3807.8,3.2078]
[1762137100019,3.6524,3808.8,3807.8,3.2078]
[1762137100213,3.2078,3808.4,3807.4,3.2078]
[1762137100410,3.2078,3808.0,3807.4,3.2078]
[1762137102319,0.47276,3807.6,3807.4,3.2078]
[1762137104118,0.87176076,3807.5,3807.1,0.00197559]
[1762137104315,0.87176076,3807.4,3807.1,0.00197559]
[1762137104520,3.68056,3807.6,3807.1,0.00197559]
[1762137104721,0.87158081,3807.5,3807.1,0.00197559]
[1762137104921,0.773,3807.2,3807.1,0.00197559]
[1762137105416,1.167,3807.2,3807.1,0.00197559]
[1762137105811,5.24616908,3807.2,3806.1,3.2078]
[1762137106115,3.2078,3806.2,3805.7,3.2078]
[1762137106523,3.2078,3806.6,3805.7,3.2078]
[1762137106718,0.8706222,3806.5,3805.7,3.2105111]
[1762137107020,3.21111842,3806.6,3805.7,3.2105111]
[1762137107021,0.8706222,3806.4,3805.7,3.2105111]
[1762137107323,3.21111842,3806.6,3805.7,3.2105111]
[1762137107528,0.87008914,3806.5,3805.7,3.2105111]
[1762137107714,0.61763892,3806.4,3805.7,3.2105111]
[1762137108025,3.2078,3806.2,3805.7,3.2105111]
[1762137108216,0.7043,3805.8,3805.7,3.2105111]
[1762137108417,3.2078,3806.2,3805.7,3.2105111]
[1762137108616,0.86923349,3806.1,3805.7,3.2105111]
[1762137108818,3.2078,3806.2,3805.7,3.2105111]
[1762137109018,0.86923468,3806.1,3805.7,3.2105111]
[1762137109320,3.2078,3806.2,3805.7,3.2105111]
[1762137110118,0.47297,3805.9,3805.8,0.7193]
[1762137110424,0.47297,3805.9,3805.7,3.2105111]
[1762137111121,0.00331842,3806.6,3805.7,3.2105111]
[1762137111718,0.00331842,3806.6,3806.5,0.7193]
[1762137111915,0.47619842,3806.6,3806.4,0.4298]
[1762137112224,0.47291,3806.4,3806.2,3.2078]
[1762137112627,0.00331842,3806.6,3806.3,0.7193]
[1762137112822,0.47618842,3806.6,3806.5,0.7193]
[1762137113026,0.00331842,3806.6,3806.5,0.7193]
[1762137114428,0.70761842,3806.6,3806.2,3.2078]
[1762137114617,0.47297,3805.9,3805.8,3.2078]
[1762137115020,0.47297,3805.9,3805.8,3.9271]
[1762137115216,0.47297,3805.9,3805.8,3.2078]
[1762137115728,0.47297,3805.9,3805.8,3.9271]
[1762137115925,0.47297,3805.9,3805.4,3.2078]
[1762137117020,0.86918149,3805.8,3805.4,3.2078]
[1762137117224,0.47297,3805.9,3805.4,3.2078]
[1762137118031,0.7043,3805.8,3805.7,1.1e-06]
[1762137119038,0.47297,3805.9,3805.7,1.1e-06]
[1762137119830,3.21111842,3806.6,3805.8,3.9271]
[1762137120034,3.21111842,3806.6,3805.8,0.7193]
[1762137120636,3.21111842,3806.6,3805.8,3.9271]
[1762137120830,3.2078,3806.1,3805.7,1.1e-06]
[1762137121026,0.7043,3804.8,3804.2,3.2078]
[1762137121338,0.4303,3801.6,3800.0,102.52098694]
[1762137121537,0.4303,3801.6,3795.9,1.1855]
[1762137121538,1.57495326,3800.1,3795.2,0.4298]
[1762137121828,2.30458931,3797.9,3796.8,0.4298]
[1762137122028,0.94704633,3797.8,3795.2,0.4298]
[1762137122330,1.57495326,3797.5,3795.3,6.5776]
[1762137122534,1.57495326,3796.4,3795.3,6.5776]
[1762137122833,4.78275326,3795.4,3790.4,2.623]
[1762137123131,4.78275326,3795.4,3789.6,0.4298]
[1762137123132,17.22127274,3795.3,3790.5,7.9536]
[1762137123334,3.2078,3791.1,3790.8,0.4298]
[1762137123638,3.2078,3792.5,3790.9,3.2078]
[1762137123828,0.31670303,3792.4,3792.1,0.4298]
[1762137124025,3.2078,3794.0,3793.4,0.4298]
[1762137124328,1.57495326,3794.5,3793.6,3.2078]
[1762137124329,3.2078,3794.5,3793.6,3.2078]
[1762137124642,3.2078,3793.8,3791.5,40.8]
[1762137124934,0.0027382,3794.5,3794.0,0.4298]
[1762137125234,3.2078,3796.1,3795.4,0.4298]
[1762137125421,3.2078,3796.5,3795.4,0.4298]
[1762137125627,3.2078,3798.2,3798.0,0.4298]
[1762137126040,0.47381,3799.1,3798.1,3.21006327]
[1762137126332,3.2078,3799.1,3798.0,0.43197155]
[1762137126534,11.83924,3801.1,3799.5,0.4298]
[1762137126535,3.2078,3799.7,3799.5,0.4298]
[1762137126734,2.20811448,3802.9,3799.5,0.4298]
[1762137126735,3.2078,3801.5,3801.0,0.4298]
[1762137127039,0.47352,3801.4,3801.0,0.43292222]
[1762137127228,3.68136,3801.1,3799.5,0.4298]
[1762137127534,3.2078,3800.3,3799.5,0.4298]
[1762137127733,3.2078,3799.8,3799.5,0.4298]
[1762137128125,0.47373,3799.8,3799.5,0.43270798]
[1762137128329,3.2078,3799.8,3798.0,0.4298]
[1762137128537,3.2078,3799.3,3798.0,0.32210976]
[1762137128839,3.2078,3798.1,3798.0,0.32210976]
[1762137129232,11.889,3798.5,3798.0,0.324988]
[1762137129233,3.2078,3798.5,3798.0,0.324988]
[1762137129434,1.18374,3801.7,3796.5,0.4298]
[1762137129435,3.21028112,3798.1,3796.5,0.4298]
[1762137129636,3.2078,3797.5,3796.5,0.4298]
[1762137130032,3.2078,3797.1,3796.5,0.4298]
[1762137130228,3.2078,3796.9,3796.5,0.4298]
[1762137130430,3.2078,3797.4,3796.5,3.64090323]
[1762137130733,3.2078,3796.6,3796.5,0.43310323]
[1762137131042,3.2078,3796.6,3796.5,0.00330323]
[1762137131339,0.47419,3796.1,3795.0,0.4298]
[1762137131639,3.2078,3796.4,3795.5,3.2078]
[1762137131835,3.2078,3796.9,3795.8,0.47421]
[1762137132037,3.2078,3797.8,3796.6,3.2078]
[1762137132241,3.11024803,3797.8,3796.6,3.21059539]
[1762137132438,0.00248112,3798.1,3798.0,0.4298]
[1762137133130,1.77905275,3801.2,3798.0,0.4298]
[1762137133131,3.2078,3798.7,3798.0,0.4298]
[1762137133334,12.636,3801.2,3799.0,0.47381]
[1762137133335,3.2078,3799.8,3799.0,0.47381]
[1762137133532,0.47374,3799.6,3799.5,0.4298]
[1762137133733,3.2078,3799.6,3799.5,0.4298]
[1762137134240,3.21021238,3799.6,3799.5,0.43321612]
[1762137134437,3.2078,3800.9,3799.5,3.64101612]
[1762137134633,3.2078,3800.9,3799.9,3.2078]
[1762137134939,3.2078,3801.3,3800.1,3.2078]
[1762137135342,3.2078,3800.6,3799.5,0.00341612]
[1762137135533,3.2078,3801.2,3799.8,3.2078]
[1762137135738,0.76399793,3801.1,3800.3,3.2078]
[1762137136040,3.2078,3800.9,3799.8,40.8]
[1762137136237,1.56961743,3800.8,3799.8,40.8]
[1762137136432,0.76370776,3800.7,3799.8,40.8]
[1762137136630,1.09602625,3800.6,3799.9,3.2078]
[1762137136833,3.2078,3800.9,3800.6,0.47362]
[1762137137040,0.00211752,3801.3,3800.7,3.2078]
[1762137137339,0.00211752,3801.3,3801.1,3.2078]
[1762137137737,3.68118,3802.6,3801.1,3.68135]
[1762137137933,3.2078,3801.8,3801.1,3.2078]
[1762137138137,3.2078,3802.2,3801.1,3.2078]
[1762137138337,0.47346,3801.9,3801.1,3.2078]
[1762137138742,0.00262776,3801.9,3801.5,3.2078]
[1762137139138,0.00262776,3801.9,3801.7,0.47347]
[1762137139546,0.00262776,3801.9,3801.5,3.2078]
[1762137139751,0.00262776,3801.9,3801.6,0.4735]
[1762137140047,3.2078,3803.0,3801.8,0.47347]
[1762137140235,3.2078,3803.0,3802.2,3.2078]
[1762137140648,3.2078,3803.0,3801.7,3.2078]
[1762137140833,0.47333,3803.0,3801.7,3.2078]
[1762137141038,0.47554844,3803.0,3801.8,0.024]
[1762137141337,0.00221844,3803.0,3802.1,3.2078]
[1762137141741,3.21001844,3803.0,3801.8,0.024]
[1762137141940,3.21001844,3803.0,3801.9,0.47346]
[1762137142139,4.55278202,3803.0,3801.9,0.47346]
[1762137142344,4.55278202,3803.0,3801.8,0.024]
[1762137142544,0.00221844,3803.0,3802.9,3.2078]
[1762137142741,1.34276358,3804.0,3803.4,0.47327]
[1762137143049,4.55056358,3804.2,3803.6,0.47324]
[1762137143242,4.55056358,3804.2,3803.4,3.2078]
[1762137143445,3.2078,3803.8,3803.3,11.765]
[1762137143638,1.34276358,3803.6,3802.6,3.2078]
[1762137143838,1.34276358,3803.1,3802.1,0.47343]
[1762137144144,1.34276358,3803.1,3802.8,3.2078]
[1762137144448,1.34276358,3803.4,3802.8,3.2078]
[1762137144647,1.34276358,3803.4,3803.2,3.2078]
[1762137144845,2.22433359,3804.3,3803.2,3.2078]
[1762137144846,1.77905275,3804.7,3803.2,27.5868]
[1762137145048,0.47309,3804.9,3804.3,3.2078]
[1762137145348,2.25205275,3805.6,3804.6,0.47311]
[1762137145541,0.47302,3805.4,3804.9,3.2078]
[1762137145744,0.47303,3805.4,3804.8,11.736]
[1762137145952,0.00337245,3805.4,3804.8,0.00244448]
[1762137146352,0.47308,3805.0,3804.8,0.00244448]
[1762137146746,0.47305,3805.3,3804.8,0.00244448]
[1762137146947,0.47308,3805.0,3804.8,0.00244448]
[1762137148048,3.2078,3805.2,3804.8,0.00244448]
[1762137148957,1.05770518,3805.1,3804.8,0.00244448]
[1762137149145,1.05770428,3805.0,3804.8,0.00244448]
[1762137149348,1.05770428,3804.9,3804.8,0.00244448]
[1762137149557,1.05770428,3804.9,3802.9,3.2078]
[1762137149862,1.3705,3805.1,3802.9,3.2078]
[1762137149863,3.2078,3803.9,3802.9,3.2078]
[1762137150056,2.42820428,3803.8,3802.9,3.2078]
[1762137150243,1.05770428,3803.7,3802.9,3.2078]
[1762137150556,3.2078,3803.2,3802.9,0.00324878]
[1762137150755,0.31560223,3803.1,3802.9,0.00324878]
[1762137151246,0.31560223,3803.0,3802.9,0.00324878]
[1762137151547,0.74237495,3803.0,3802.9,0.00324878]
[1762137151753,0.31560223,3803.0,3802.9,0.00324878]
[1762137151947,0.74237495,3803.0,3802.9,0.00324878]
[1762137152151,1.05797718,3803.0,3802.9,0.00324878]
[1762137153155,1.05797718,3803.0,3800.9,3.2078]
[1762137153156,12.26577718,3803.0,3800.9,3.2078]
[1762137153352,4.26577718,3802.9,3801.7,3.2078]
[1762137153656,1.05797718,3802.8,3802.1,3.2078]
[1762137153855,1.05797718,3802.7,3802.1,15.29322]
[1762137154054,3.2078,3803.3,3802.1,14.82308973]
[1762137154246,1.0387529,3803.2,3803.0,0.47331]
[1762137154557,14.82383359,3805.1,3802.9,3.2078]
[1762137154558,3.2078,3804.5,3804.2,0.47316]
[1762137154849,3.2078,3804.5,3804.3,0.47315]
[1762137155043,3.2078,3805.7,3804.3,14.8098]
[1762137155248,3.21095685,3805.7,3804.7,3.2078]
[1762137155444,3.21095685,3805.7,3804.9,0.47308]
[1762137155754,2.21095685,3805.7,3805.1,3.2078]
[1762137156056,0.473,3805.6,3805.1,3.2078]
[1762137156250,2.21095685,3805.7,3805.1,3.2078]
[1762137156450,0.00315685,3805.7,3805.3,0.47303]
[1762137156657,0.00315685,3805.7,3805.1,3.2078]
[1762137156658,0.00315685,3805.7,3805.1,3.68086]
[1762137156955,3.21095685,3805.7,3804.9,0.00205837]
[1762137157151,0.47305,3805.2,3804.9,0.00205837]
[1762137157753,0.47302,3805.4,3804.9,0.00205837]
[1762137157956,0.47301,3805.6,3805.0,0.47307]
[1762137158160,0.47303,3805.4,3804.9,0.00205837]
[1762137158359,0.47307,3805.1,3805.0,11.565]
[1762137158752,0.47304,3805.3,3804.9,0.00205837]
[1762137158952,0.00315685,3805.7,3804.9,0.00205837]
[1762137158953,0.47306,3805.2,3805.0,11.554]
[1762137159263,0.00315685,3805.7,3804.9,0.00205837]
[1762137159264,0.47303,3805.4,3804.9,0.00205837]
[1762137159561,0.47306,3805.2,3805.0,11.548]
[1762137159758,0.47307,3805.1,3804.9,0.00205837]
[1762137160063,0.47307,3805.1,3803.1,1.18326]
[1762137160064,1.18275,3804.8,3803.7,3.2078]
[1762137160248,0.47322,3803.9,3803.7,3.2078]
[1762137160556,0.47322,3803.9,3803.3,0.47328]
[1762137160755,0.47321,3803.9,3803.4,3.2078]
[1762137160956,0.47321,3803.9,3803.4,3.21108431]
[1762137161157,0.47323,3803.8,3803.4,3.21108431]
[1762137161463,0.4732,3804.0,3803.5,11.52]
[1762137161662,0.47311,3804.7,3803.9,3.2078]
[1762137161860,0.47311,3804.8,3804.4,3.2078]
[1762137162061,3.2078,3804.9,3804.4,14.7158]
[1762137162257,3.2078,3804.9,3804.4,15.18894]
[1762137162461,0.47303,3805.4,3804.8,3.2078]
[1762137162764,1.3705,3805.2,3804.3,11.497]
[1762137162959,0.47313,3804.6,3804.3,14.7048]
[1762137163263,3.21095685,3805.7,3804.3,3.2078]
[1762137163463,3.21095685,3805.7,3804.7,3.2078]
[1762137163857,0.47304,3805.3,3804.8,0.47309]
[1762137164252,0.47309,3804.9,3804.8,11.477]
[1762137164461,3.2078,3804.9,3804.0,40.8]
[1762137164655,3.2078,3804.9,3804.1,11.472]
[1762137164866,3.2078,3804.9,3803.9,3.2078]
[1762137165059,0.47316,3804.3,3804.2,11.467]
[1762137165559,0.47319,3804.1,3803.9,3.2078]
[1762137165763,0.47319,3804.1,3804.0,11.451]
[1762137166150,3.2078,3804.9,3803.9,3.2078]
[1762137166151,0.47316,3804.3,3803.9,3.2078]
[1762137166352,0.4732,3804.0,3803.9,14.6478]
[1762137166659,0.6231147,3804.0,3803.9,14.6478]
[1762137166862,0.6231147,3804.1,3803.9,14.6478]
[1762137167064,0.6231147,3804.0,3803.9,14.6478]
[1762137167358,0.6231147,3804.2,3803.9,14.6478]
[1762137167560,0.6231147,3804.1,3804.0,0.4732]
[1762137167765,0.47312,3804.7,3804.1,0.47318]
[1762137168063,0.62358957,3804.6,3804.3,3.2078]
[1762137168261,0.62358957,3804.5,3804.3,3.2078]
[1762137168465,0.62358957,3804.4,3804.3,3.2078]
[1762137168656,0.47309,3804.9,3804.4,0.47315]
[1762137168965,0.47309,3804.9,3803.4,1.18644431]
[1762137168966,3.83083281,3804.8,3803.9,3.2078]
[1762137169163,3.83083281,3804.8,3804.0,7.388]
[1762137169164,0.62303281,3804.7,3804.0,7.388]
[1762137169461,4.58186591,3804.8,3804.0,7.388]
[1762137169462,0.47316,3804.3,3804.0,7.388]
[1762137169656,0.62303281,3804.2,3804.0,0.47319]
[1762137169855,0.47318,3804.2,3804.1,11.4]
[1762137170058,0.47315,3804.4,3804.1,11.4]
[1762137170265,0.6200853,3804.3,3804.1,11.87318]
[1762137170562,0.47313,3804.6,3804.1,11.4]
[1762137170762,1.09352945,3804.5,3804.3,3.2078]
[1762137170956,0.62038945,3804.4,3804.3,3.2078]
[1762137171265,0.62038945,3804.4,3804.3,14.5838]
[1762137172156,0.47314,3804.5,3804.3,3.2078]
[1762137172357,0.61079692,3804.4,3803.9,3.2078]
[1762137172554,0.61079692,3804.3,3804.0,11.359]
[1762137172759,0.61079692,3804.3,3804.2,0.47317]
[1762137172963,1.37406591,3805.3,3804.8,0.47309]
[1762137173265,0.47308,3805.0,3804.9,11.343]
[1762137173665,1.08303023,3805.0,3804.9,11.343]
[1762137173865,1.08303023,3805.0,3804.7,0.4731]
[1762137174064,1.08303023,3804.9,3804.8,11.328]
[1762137174669,0.60995023,3804.9,3804.8,11.328]
[1762137175760,1.98401614,3805.5,3804.8,11.328]
[1762137175965,0.60995023,3805.4,3805.2,3.68084]
[1762137176268,0.60995023,3805.3,3805.2,3.2078]
[1762137176568,0.60995023,3805.3,3805.2,14.5018]
[1762137176865,0.47614685,3805.7,3805.4,0.47302]
[1762137177065,0.5929344,3805.6,3805.4,0.47302]
[1762137177257,0.47309,3804.9,3804.5,0.47313]
[1762137177457,0.5929344,3804.8,3804.6,11.284]
[1762137177657,1.37722276,3805.7,3804.9,0.47308]
[1762137177958,0.47302,3805.5,3805.0,3.2078]
[1762137178161,1.37406591,3806.6,3805.4,5.07597091]
[1762137178459,3.2078,3806.5,3805.7,3.2078]
[1762137178660,3.2078,3806.5,3805.3,3.2078]
[1762137178866,0.47296,3806.0,3805.8,8.955]
[1762137179070,0.47287,3806.7,3806.0,0.47294]
[1762137179370,0.47288,3806.6,3806.0,0.47294]
[1762137179561,0.00212215,3806.7,3806.1,0.47293]
[1762137179762,0.00212215,3806.7,3806.3,3.2078]
[1762137180364,0.47499215,3806.7,3806.4,11.271]
[1762137180566,0.47499215,3806.7,3806.4,11.74389]
[1762137180567,0.00212215,3806.7,3806.4,11.74389]
[1762137180768,0.00212215,3806.7,3806.1,0.00185768]
[1762137180972,0.00212215,3806.7,3804.0,2.77575484]
[1762137180973,0.47305,3805.2,3805.1,3.2078]
[1762137181263,1.3731,3805.0,3804.2,3.2078]
[1762137181466,3.2078,3804.9,3804.3,11.264]
[1762137181767,0.47317,3804.3,3804.0,0.024]
[1762137182067,0.47318,3804.2,3804.0,0.02714117]
[1762137184858,0.47318,3804.2,3804.0,1.17e-06]
[1762137185066,1.3731,3804.0,3802.3,3.2078]
[1762137185364,3.2078,3803.6,3802.3,3.6812]
[1762137185572,3.2078,3803.2,3802.4,11.209]
[1762137185771,3.2078,3803.2,3802.3,3.2078]
[1762137185964,0.00297894,3803.2,3802.7,3.2078]
[1762137186362,0.00297894,3803.2,3802.3,0.00310838]
[1762137186562,3.2078,3802.8,3802.3,0.00310838]
[1762137187173,3.2078,3802.4,3800.8,3.2078]
[1762137187360,3.2078,3801.9,3800.8,3.2078]
[1762137187559,3.2078,3801.9,3801.2,3.2078]
[1762137188175,3.2078,3801.9,3801.2,3.20965123]
[1762137188875,3.2078,3801.9,3801.2,0.00185123]
[1762137189263,3.2078,3801.3,3800.3,3.2078]
[1762137189463,1.86817091,3801.6,3800.3,3.2078]
[1762137189464,3.2078,3800.8,3800.3,3.2078]
[1762137190267,3.2078,3800.8,3800.3,3.21070393]
[1762137190773,3.2078,3800.8,3800.3,0.00290393]
[1762137191277,1.3731,3801.0,3800.3,0.00290393]
[1762137191874,1.3731,3801.0,3800.4,0.47363]
[1762137192068,1.3731,3801.0,3800.3,0.00290393]
[1762137192375,1.3731,3801.0,3800.3,0.47655393]
[1762137192574,1.84668,3801.0,3800.4,0.47363]
[1762137192775,1.84668,3801.0,3800.3,0.00290393]
[1762137192776,3.2078,3801.5,3800.8,3.2078]
[1762137193076,3.2078,3802.4,3801.3,3.2078]
[1762137193278,1.3731,3802.0,3801.0,0.47357]
[1762137193469,1.3731,3802.0,3801.0,3.2078]
[1762137193671,0.47355,3801.2,3801.0,3.2078]
[1762137193879,0.47363,3800.6,3800.4,0.024]
[1762137194974,3.2078,3800.7,3800.3,3.93e-06]
[1762137194975,0.47365,3800.4,3800.3,3.93e-06]
[1762137195275,1.3237,3799.0,3798.5,3.2078]
[1762137195478,3.2078,3798.6,3797.3,0.47403]
[1762137195678,3.19187091,3799.0,3797.3,3.2078]
[1762137195679,3.2078,3798.5,3797.3,3.2078]
[1762137195976,3.2078,3798.9,3797.8,3.2078]
[1762137196171,3.2078,3798.5,3797.8,3.21061633]
[1762137196378,3.21087173,3798.9,3797.8,3.68458633]
[1762137196579,3.21087173,3798.9,3798.4,0.47389]
[1762137196980,3.2078,3798.5,3797.8,0.00281633]
[1762137197178,3.2078,3798.1,3797.8,0.00281633]
[1762137197485,3.2078,3798.6,3798.1,0.47393]
[1762137197686,3.2078,3798.6,3797.8,3.21061633]
[1762137197880,3.2078,3797.9,3797.8,0.00281633]
[1762137198781,11.2078,3797.9,3796.8,3.2078]
[1762137198975,3.2078,3797.3,3795.8,3.2078]
[1762137199182,3.2078,3796.9,3795.8,3.2078]
[1762137199578,3.2078,3796.9,3794.9,11.125]
[1762137199579,3.2078,3796.9,3795.4,3.2078]